[Event "DSB-Frauenkader-Challenge 2021"]
[Site "Magdeburg"]
[Date "2021.04.06"]
[Round "2.4"]
[White "Bashylina, Luisa"]
[Black "Schneider, Jana"]
[Result "0-1"]
[ECO "C45"]
[WhiteElo "1978"]
[BlackElo "2272"]
[Annotator "NA"]
[PlyCount "104"]
[EventDate "2021.03.30"]
[EventType "tourn"]
[EventCountry "GER"]
[SourceTitle "playchess.com"]
[Source "ChessBase"]
[SourceQuality "1"]
[TimeControl "40/5400+30:1800+30"]

1. e4 {[%emt 0:00:00]} e5 {[%emt 0:00:00]} 2. Nf3 {[%emt 0:00:00]} Nc6 {[%emt 0:00:00]} 3. d4 {[%emt 0:00:00]} exd4 {[%emt 0:00:00]} 4. Nxd4 {[%emt 0:00:00]} Bc5 {[%emt 0:00:02]} 5. Be3 {[%emt 0:00:00]} Qf6 {[%emt 0:00:11]} 6. c3 {[%emt 0:00:05]} Nge7 {[%emt 0:00:13]} 7. Bc4 {[%emt 0:00:08]} O-O {[%emt 0:00:12]} 8. O-O {[%emt 0:00:10]} Ne5 {[%emt 0:00:11]} 9. Be2 {[%emt 0:00:10]} Qg6 {[%emt 0:00:18]} 10. Nd2 {[%emt 0:08:59]} d5 {[%emt 0:00:58]} 11. Bh5 {[%emt 0:04:35]} Qd6 {[%emt 0:00:42]} 12. f4 {[%emt 0:05:33]} N5c6 {[%emt 0:00:21]} 13. e5 {[%emt 0:07:28]} Qh6 {[%emt 0:00:32]} 14. N2b3 {[%emt 0:07:50]} Bb6 {[%emt 0:01:21]} 15. Qe2 {[%emt 0:01:03]} Nxd4 {[%emt 0:01:05]} 16. Bxd4 {[%emt 0:03:05]} Nf5 {[%emt 0:06:02]} 17. Bxb6 {[%emt 0:02:15]} Qxb6+ {[%emt 0:04:44]} 18. Kh1 {[%emt 0:01:31]} a5 {[%emt 0:08:22]} 19. Rae1 {[%emt 0:11:27]} a4 {[%emt 0:03:15]} 20. Nd4 {[%emt 0:03:14]} Nxd4 {[%emt 0:08:11]} 21. cxd4 {[%emt 0:00:11]} Qxd4 {[%emt 0:03:05]} 22. f5 {[%emt 0:00:33]} Ra6 {[%emt 0:03:31]} 23. Rc1 {[%emt 0:11:01]} c5 {[%emt 0:08:13]} 24. Rfd1 {[%emt 0:07:07]} Qe4 {[%emt 0:06:36]} 25. Rxc5 {[%emt 0:01:06]} Qxf5 {[%emt 0:03:14]} 26. Rcxd5 $15 {[%emt 0:03:48]} Rh6 {[%emt 0:01:10]} 27. g4 {[%emt 0:03:55]} Qf4 {[%emt 0:05:56]} 28. Rf1 {[%emt 0:02:24]} Qg5 {[%emt 0:04:36]} 29. Bxf7+ {[%emt 0:11:19]} Rxf7 {[%emt 0:01:03]} 30. Rxf7 {[%emt 0:00:21]} Be6 {[%emt 0:09:51]} 31. Rfd7 {[%emt 0:02:29]} Qc1+ {[%emt 0:01:11]} 32. Qd1 {[%emt 0:00:59]} Bxd5+ {[%emt 0:01:33]} 33. Rxd5 {[%emt 0:00:02]} Rc6 {[%emt 0:00:48]} 34. e6 {[%emt 0:01:43]} Kf8 {[%emt 0:00:37]} 35. Rd8+ {[%emt 0:00:49]} Ke7 {[%emt 0:00:06]} 36. Rd7+ {[%emt 0:00:10]} Kxe6 {[%emt 0:00:38]} 37. Rd6+ {[%emt 0:00:07]} Ke5 {[%emt 0:00:48]} 38. Rd5+ {[%emt 0:00:07]} Kf6 {[%emt 0:00:35]} 39. Rd6+ {[%emt 0:00:15]} Kg5 {[%emt 0:00:42]} 40. Rd5+ {[%emt 0:00:08]} Kh6 {[%emt 0:00:52]} 41. Rd6+ {[%emt 0:31:49]} g6 {[%emt 0:32:10]} 42. Rd4 {[%emt 0:00:00]} b5 {[%emt 0:00:00]} 43. a3 {[%emt 0:00:00]} Qxd1+ {[%emt 0:00:00]} 44. Rxd1 {[%emt 0:00:00]} Rc2 {[%emt 0:00:00]} 45. Rb1 {[%emt 0:00:00]} Kg5 {[%emt 0:00:00]} 46. b3 {[%emt 0:00:00]} Kxg4 {[%emt 0:00:00]} 47. bxa4 {[%emt 0:00:00]} bxa4 {[%emt 0:00:00]} 48. Rg1+ {[%emt 0:00:00]} Kf4 {[%emt 0:00:00]} 49. h3 {[%emt 0:00:00]} Ra2 {[%emt 0:00:00]} 50. Rg4+ {[%emt 0:00:00]} Kf3 {[%emt 0:00:00]} 51. Rxa4 {[%emt 0:00:00]} Kg3 {[%emt 0:00:00]} 52. Rg4+ {[%emt 0:00:00]} Kxh3 {[%emt 0:00:00]} 0-1

[Event "DSB-Frauenkader-Challenge 2021"]
[Site "Magdeburg"]
[Date "2021.04.08"]
[Round "4.1"]
[White "Sieber, Fiona"]
[Black "Paehtz, Elisabeth"]
[Result "0-1"]
[ECO "B33"]
[WhiteElo "2275"]
[BlackElo "2467"]
[Annotator "ChessBase"]
[PlyCount "90"]
[EventDate "2021.03.30"]
[EventType "tourn"]
[EventCountry "GER"]
[SourceTitle "playchess.com"]
[Source "ChessBase"]
[SourceQuality "1"]
[TimeControl "40/5400+30:1800+30"]

1. e4 {[%emt 0:00:00]} c5 {[%emt 0:00:00]} 2. Nf3 {[%emt 0:00:30]} Nc6 {[%emt 0:00:30]} 3. d4 {[%emt 0:00:30]} cxd4 {[%emt 0:00:30]} 4. Nxd4 {[%emt 0:00:30]} Qb6 {[%emt 0:00:30]} 5. Nb3 {[%emt 0:00:00]} Nf6 {[%emt 0:00:00]} 6. Nc3 {[%emt 0:00:00]} e6 {[%emt 0:00:00]} 7. Qe2 {[%emt 0:01:08]} Bb4 {[%emt 0:00:00]} 8. Bd2 {[%emt 0:01:51]} O-O {[%emt 0:01:34]} 9. a3 {[%emt 0:01:04]} Be7 {[%emt 0:00:13]} 10. O-O-O {[%emt 0:01:41]} d5 {[%emt 0:00:31]} 11. e5 {[%emt 0:01:29]} Nd7 {[%emt 0:04:13]} 12. f4 {[%emt 0:03:27]} a6 {[%emt 0:00:36]} 13. h4 {[%emt 0:05:22]} Rd8 {[%emt 0:11:59]} 14. Be3 {[%emt 0:04:58]} Qc7 {[%emt 0:00:04]} 15. h5 {[%emt 0:00:39]} b5 {[%emt 0:02:26]} 16. Rh3 {[%emt 0:04:25]} Bf8 {[%emt 0:03:40]} 17. h6 {[%emt 0:12:00]} g6 {[%emt 0:00:07]} 18. g4 {[%emt 0:00:21]} Rb8 {[%emt 0:03:22]} 19. Bg2 {[%emt 0:11:23]} b4 {[%emt 0:02:37]} 20. axb4 {[%emt 0:00:12]} Nxb4 {[%emt 0:00:08]} 21. Bg1 {[%emt 0:08:53]} Nb6 {[%emt 0:10:04]} 22. Bf1 {[%emt 0:16:01]} Bd7 {[%emt 0:02:31]} 23. Qf2 {[%emt 0:01:31]} Rdc8 {[%emt 0:01:56]} 24. Kb1 {[%emt 0:04:14]} Be7 {[%emt 0:06:55]} 25. Rd2 {[%emt 0:07:54]} Nc4 {[%emt 0:13:11]} 26. Bxc4 {[%emt 0:00:12]} Qxc4 {[%emt 0:00:05]} 27. Rd4 {[%emt 0:03:02]} Qc7 {[%emt 0:00:47]} 28. Qd2 {[%emt 0:00:51]} a5 {[%emt 0:00:44]} 29. Rf3 {[%emt 0:06:38]} a4 {[%emt 0:01:40]} 30. Nc1 {[%emt 0:00:02]} Qb7 {[%emt 0:00:56]} 31. b3 {[%emt 0:01:35]} Ra8 {[%emt 0:02:51]} 32. f5 {[%emt 0:00:32]} axb3 {[%emt 0:01:11]} 33. cxb3 {[%emt 0:00:13]} Nc6 {[%emt 0:02:15]} 34. fxg6 {[%emt 0:01:54]} fxg6 {[%emt 0:00:05]} 35. Rxd5 {[%emt 0:00:46]} Nb4 {[%emt 0:10:21]} 36. Rxd7 {[%emt 0:00:23]} Qxf3 {[%emt 0:00:04]} 37. Rxe7 {[%emt 0:00:22]} Rxc3 {[%emt 0:01:35]} 38. Ba7 {[%emt 0:01:16]} Rxb3+ {[%emt 0:04:23]} 39. Nxb3 {[%emt 0:00:01]} Qxb3+ {[%emt 0:00:05]} 40. Qb2 {[%emt 0:00:04]} Qd3+ {[%emt 0:00:29]} 41. Ka1 {[%emt 0:30:10]} Qd1+ {[%emt 0:30:15]} 42. Qb1 {[%emt 0:00:10]} Qd4+ {[%emt 0:00:05]} 43. Qb2 {[%emt 0:00:12]} Rxa7+ {[%emt 0:00:18]} 44. Rxa7 {[%emt 0:00:07]} Qxa7+ {[%emt 0:00:03]} 45. Kb1 {[%emt 0:00:04]} Qg1+ {[%emt 0:00:12]} 0-1

[Event "DSB-Frauenkader-Challenge 2021"]
[Site "Magdeburg"]
[Date "2021.04.08"]
[Round "4.2"]
[White "Lubbe, Melanie"]
[Black "Ziegenfuss, Antonia"]
[Result "1-0"]
[ECO "A34"]
[WhiteElo "2274"]
[BlackElo "2101"]
[Annotator "NA"]
[PlyCount "77"]
[EventDate "2021.03.30"]
[EventType "tourn"]
[EventCountry "GER"]
[SourceTitle "playchess.com"]
[Source "ChessBase"]
[SourceQuality "1"]
[TimeControl "40/5400+30:1800+30"]

1. c4 {[%emt 0:00:00]} c5 {[%emt 0:00:00]} 2. g3 {[%emt 0:00:00]} Nf6 {[%emt 0:00:00]} 3. Bg2 {[%emt 0:00:00]} d5 {[%emt 0:00:03]} 4. cxd5 {[%emt 0:00:00]} Nxd5 {[%emt 0:00:06]} 5. Nc3 {[%emt 0:00:18]} Nc7 {[%emt 0:00:11]} 6. Nf3 {[%emt 0:00:22]} Nc6 {[%emt 0:00:18]} 7. O-O {[%emt 0:00:14]} e5 {[%emt 0:00:27]} 8. Ne1 {[%emt 0:00:26]} Be7 {[%emt 0:04:16]} 9. Nd3 {[%emt 0:00:35]} f6 {[%emt 0:02:09]} 10. b3 {[%emt 0:00:28]} Bg4 {[%emt 0:11:28]} 11. Bxc6+ {[%emt 0:01:32]} bxc6 {[%emt 0:00:09]} 12. f3 {[%emt 0:00:07]} Bf5 {[%emt 0:06:26]} 13. Nf2 {[%emt 0:03:05]} h5 {[%emt 0:09:20]} 14. d3 {[%emt 0:05:00]} g5 {[%emt 0:02:17]} 15. Bd2 {[%emt 0:19:19]} Ne6 {[%emt 0:10:33]} 16. Rc1 {[%emt 0:02:58]} Kf7 {[%emt 0:04:26]} 17. Nfe4 {[%emt 0:12:15]} ({White should play} 17. Na4 $14) 17... Qg8 {[%emt 0:03:45]} (17... Bh3 $11) 18. Na4 {[%emt 0:08:05]} g4 $11 {[%emt 0:02:32]} 19. Naxc5 {[%emt 0:06:27]} h4 {[%emt 0:08:20]} 20. Nxe6 {[%emt 0:08:58]} hxg3 {[%emt 0:09:06]} 21. N6g5+ {[%emt 0:03:13]} fxg5 {[%emt 0:00:22]} 22. Nxg3 {[%emt 0:04:08]} Qh7 {[%emt 0:00:58]} 23. Rf2 {[%emt 0:00:07]} Bd7 {[%emt 0:03:21]} 24. fxg4+ {[%emt 0:00:38]} Ke8 {[%emt 0:07:14]} 25. Qc2 {[%emt 0:04:30]} c5 {[%emt 0:02:21]} 26. Qc4 {[%emt 0:01:19]} Rc8 {[%emt 0:03:08]} 27. Qd5 {[%emt 0:04:09]} Bxg4 {[%emt 0:05:12]} 28. Qxe5 {[%emt 0:00:42]} Kd7 {[%emt 0:00:53]} 29. Qd5+ {[%emt 0:05:51]} Ke8 {[%emt 0:02:16]} 30. Bc3 {[%emt 0:01:12]} Rg8 {[%emt 0:01:14]} 31. Rcf1 {[%emt 0:01:04]} Rd8 {[%emt 0:00:58]} 32. Qe5 {[%emt 0:01:23]} Bh3 {[%emt 0:00:19]} 33. Rd1 {[%emt 0:01:19]} Rg6 {[%emt 0:00:53]} 34. Nf5 {[%emt 0:01:17]} Bxf5 {[%emt 0:00:39]} 35. Qxf5 {[%emt 0:00:31]} Qg8 {[%emt 0:00:20]} 36. Rdf1 {[%emt 0:01:16]} Rd5 {[%emt 0:00:34]} 37. Qc8+ {[%emt 0:00:34]} Rd8 {[%emt 0:00:17]} 38. Qg4 {[%emt 0:00:38]} Qd5 {[%emt 0:00:55]} 39. Rf3 {[%emt 0:01:14]} 1-0

[Event "DSB-Frauenkader-Challenge 2021"]
[Site "Magdeburg"]
[Date "2021.04.08"]
[Round "4.3"]
[White "Bashylina, Luisa"]
[Black "Heinemann, Josefine"]
[Result "1-0"]
[ECO "B53"]
[WhiteElo "1978"]
[BlackElo "2296"]
[Annotator "NA"]
[PlyCount "109"]
[EventDate "2021.03.30"]
[EventType "tourn"]
[EventCountry "GER"]
[SourceTitle "playchess.com"]
[Source "ChessBase"]
[SourceQuality "1"]
[TimeControl "40/5400+30:1800+30"]

1. e4 {[%emt 0:00:00]} c5 {[%emt 0:00:00]} 2. Nf3 {[%emt 0:00:00]} d6 {[%emt 0:00:00]} 3. d4 {[%emt 0:00:00]} cxd4 {[%emt 0:00:00]} 4. Qxd4 {[%emt 0:00:00]} Nc6 {[%emt 0:00:12]} 5. Bb5 {[%emt 0:00:00]} Bd7 {[%emt 0:00:23]} 6. Bxc6 {[%emt 0:00:00]} Bxc6 {[%emt 0:00:05]} 7. Nc3 {[%emt 0:00:05]} Nf6 {[%emt 0:00:31]} 8. Bg5 {[%emt 0:00:06]} e6 {[%emt 0:00:11]} 9. Qd3 {[%emt 0:00:06]} Be7 {[%emt 0:00:51]} 10. Nd4 {[%emt 0:00:06]} Qa5 {[%emt 0:00:59]} 11. f4 {[%emt 0:01:52]} Bxe4 {[%emt 0:10:12]} 12. Qb5+ {[%emt 0:03:47]} Qxb5 {[%emt 0:00:41]} 13. Ndxb5 {[%emt 0:00:26]} Bxg2 {[%emt 0:00:14]} 14. Rg1 {[%emt 0:01:13]} Bc6 {[%emt 0:00:13]} 15. Nc7+ {[%emt 0:00:17]} Kd7 {[%emt 0:00:04]} 16. Nxa8 {[%emt 0:00:05]} Rxa8 {[%emt 0:00:04]} 17. O-O-O {[%emt 0:02:15]} g6 {[%emt 0:04:47]} 18. Rd3 {[%emt 0:10:15]} Ne4 {[%emt 0:11:32]} 19. Nxe4 {[%emt 0:19:30]} Bxe4 {[%emt 0:00:06]} 20. Rd4 {[%emt 0:03:50]} Bc6 {[%emt 0:01:58]} 21. Rgd1 {[%emt 0:01:35]} (21. Bxe7 $11 Kxe7 22. Kd2) 21... f6 {[%emt 0:04:26]} 22. Bh6 {[%emt 0:02:33]} Rg8 {[%emt 0:04:39]} 23. h4 {[%emt 0:06:35]} Rc8 {[%emt 0:03:25]} 24. c3 {[%emt 0:06:45]} Bd5 $17 {[%emt 0:07:55]} 25. Rg1 {[%emt 0:03:34]} Bf3 {[%emt 0:07:06]} 26. Rg3 {[%emt 0:02:42]} Bh5 {[%emt 0:01:52]} 27. Kc2 {[%emt 0:06:58]} Rc5 {[%emt 0:01:48]} 28. Ra4 {[%emt 0:06:57]} a6 {[%emt 0:00:57]} 29. Rb4 {[%emt 0:00:27]} b5 {[%emt 0:00:58]} 30. a4 {[%emt 0:01:38]} Be2 {[%emt 0:06:17]} 31. axb5 {[%emt 0:03:51]} Bxb5 {[%emt 0:02:10]} 32. f5 {[%emt 0:06:02]} Rxf5 {[%emt 0:00:37]} 33. c4 {[%emt 0:01:44]} Bc6 {[%emt 0:00:56]} 34. Bd2 {[%emt 0:01:51]} Kc7 {[%emt 0:04:08]} 35. Be3 {[%emt 0:03:34]} Re5 {[%emt 0:07:38]} 36. Bb6+ {[%emt 0:03:35]} Kd7 {[%emt 0:00:20]} 37. Ra3 {[%emt 0:00:34]} d5 {[%emt 0:00:32]} 38. c5 {[%emt 0:00:21]} Re2+ {[%emt 0:05:59]} 39. Kd1 {[%emt 0:01:03]} Rh2 {[%emt 0:02:15]} 40. Rxa6 {[%emt 0:00:19]} e5 {[%emt 0:00:06]} 41. Ra7+ {[%emt 0:04:49]} Ke6 {[%emt 0:01:44]} 42. Rc7 {[%emt 0:01:42]} Be8 {[%emt 0:00:49]} 43. Ba7 {[%emt 0:04:16]} Bf8 {[%emt 0:10:17]} 44. Rc8 {[%emt 0:02:28]} Kd7 {[%emt 0:03:01]} 45. Rbb8 {[%emt 0:00:54]} Bh6 {[%emt 0:01:12]} 46. Rxe8 {[%emt 0:03:33]} d4 {[%emt 0:00:20]} 47. Rh8 {[%emt 0:02:39]} Be3 {[%emt 0:02:11]} 48. Rb6 {[%emt 0:03:47]} Rxh4 {[%emt 0:00:46]} 49. Rd6+ {[%emt 0:00:55]} Kc7 {[%emt 0:03:58]} 50. Rf8 {[%emt 0:00:44]} e4 {[%emt 0:05:22]} 51. Rf7+ {[%emt 0:00:13]} Kc8 {[%emt 0:00:05]} 52. Bb6 {[%emt 0:01:15]} Rh1+ {[%emt 0:03:37]} 53. Kc2 {[%emt 0:00:23]} d3+ {[%emt 0:00:04]} 54. Kb3 {[%emt 0:00:11]} d2 {[%emt 0:00:07]} 55. Rd8# {[%emt 0:13:10]} 1-0

[Event "DSB-Frauenkader-Challenge 2021"]
[Site "Magdeburg"]
[Date "2021.04.08"]
[Round "4.4"]
[White "Schneider, Jana"]
[Black "Muetsch, Annmarie"]
[Result "0-1"]
[ECO "C41"]
[WhiteElo "2272"]
[BlackElo "2266"]
[Annotator "NA"]
[PlyCount "96"]
[EventDate "2021.03.30"]
[EventType "tourn"]
[EventCountry "GER"]
[SourceTitle "playchess.com"]
[Source "ChessBase"]
[SourceQuality "1"]
[TimeControl "40/5400+30:1800+30"]

1. e4 {[%emt 0:00:00]} d6 {[%emt 0:00:00]} 2. d4 {[%emt 0:00:00]} Nf6 {[%emt 0:00:01]} 3. Nc3 {[%emt 0:00:00]} Nbd7 {[%emt 0:00:09]} 4. Nf3 {[%emt 0:00:27]} e5 {[%emt 0:00:13]} 5. Bc4 {[%emt 0:00:22]} Be7 {[%emt 0:00:06]} 6. O-O {[%emt 0:00:20]} c6 {[%emt 0:00:24]} 7. a4 {[%emt 0:01:25]} Qc7 {[%emt 0:00:19]} 8. Re1 {[%emt 0:01:40]} h6 {[%emt 0:00:28]} 9. Ba2 {[%emt 0:19:05]} Nf8 {[%emt 0:01:19]} 10. Qe2 {[%emt 0:06:24]} Ng6 {[%emt 0:07:54]} 11. h3 {[%emt 0:03:16]} O-O {[%emt 0:03:45]} 12. Be3 {[%emt 0:02:18]} Nh5 {[%emt 0:14:22]} 13. Qc4 {[%emt 0:08:15]} Bd8 {[%emt 0:05:14]} (13... Be6 $5 {[%cal Re6c4]} 14. Qf1 Bxa2 15. Rxa2 Nf6 $11) 14. Rad1 {[%emt 0:04:11]} Nhf4 {[%emt 0:04:03]} 15. d5 {[%emt 0:11:36]} c5 {[%emt 0:09:36]} 16. Nb5 {[%emt 0:02:12]} (16. Ne2 $11 {keeps the balance.}) 16... Qd7 {[%emt 0:01:49]} 17. Nxd6 $19 {[%emt 0:01:51]} Qxd6 {[%emt 0:10:02]} 18. Bxc5 {[%emt 0:00:24]} Qf6 {[%emt 0:00:42]} 19. Re3 {[%emt 0:08:23]} Bd7 {[%emt 0:06:16]} 20. Qb4 {[%emt 0:07:23]} b6 {[%emt 0:00:36]} 21. Bxf8 {[%emt 0:00:07]} Nxf8 {[%emt 0:00:03]} 22. Qc3 {[%emt 0:02:40]} N8g6 {[%emt 0:01:41]} 23. d6 {[%emt 0:00:51]} Rc8 {[%emt 0:03:27]} 24. Qb3 {[%emt 0:02:34]} Rc5 {[%emt 0:03:51]} 25. Rd2 {[%emt 0:02:28]} Nf8 {[%emt 0:03:14]} 26. h4 {[%emt 0:06:04]} N8e6 {[%emt 0:01:30]} 27. g3 {[%emt 0:00:30]} Nh5 {[%emt 0:02:22]} 28. Rd5 {[%emt 0:01:59]} Bc6 {[%emt 0:08:28]} 29. Rxc5 {[%emt 0:00:10]} bxc5 {[%emt 0:00:24]} 30. Qb8 {[%emt 0:00:58]} Nhf4 {[%emt 0:07:25]} 31. Nxe5 {[%emt 0:02:53]} Nh3+ {[%emt 0:01:32]} 32. Kg2 {[%emt 0:00:48]} Qxf2+ {[%emt 0:00:59]} 33. Kxh3 {[%emt 0:00:06]} Nf4+ {[%emt 0:00:58]} 34. gxf4 {[%emt 0:00:34]} Qxe3+ {[%emt 0:00:17]} 35. Kh2 {[%emt 0:04:09]} Qf2+ {[%emt 0:01:23]} 36. Kh3 {[%emt 0:00:05]} Qxh4+ {[%emt 0:00:24]} 37. Kg2 {[%emt 0:00:09]} Bxe4+ {[%emt 0:00:09]} 38. Kf1 {[%emt 0:00:23]} Kh7 {[%emt 0:01:36]} 39. Bxf7 {[%emt 0:01:43]} Qxf4+ {[%emt 0:00:17]} 40. Ke2 {[%emt 0:00:16]} Qxe5 {[%emt 0:01:43]} 41. Qxd8 {[%emt 0:30:30]} Bg6+ {[%emt 0:01:44]} 42. Kd2 {[%emt 0:00:00]} Bxf7 {[%emt 0:00:35]} 43. Qc7 {[%emt 0:00:00]} Qd4+ {[%emt 0:00:42]} 44. Ke2 {[%emt 0:00:00]} Bh5+ {[%emt 0:00:26]} 45. Kf1 {[%emt 0:00:00]} Qf4+ {[%emt 0:02:19]} 46. Kg1 {[%emt 0:00:00]} Be2 {[%emt 0:02:01]} 47. Kg2 {[%emt 0:00:00]} Qf3+ {[%emt 0:00:44]} 48. Kh2 {[%emt 0:00:00]} Bf1 {[%emt 0:00:17]} 0-1

[Event "DSB-Frauenkader-Challenge 2021"]
[Site "Magdeburg"]
[Date "2021.04.09"]
[Round "5.2"]
[White "Heinemann, Josefine"]
[Black "Schneider, Jana"]
[Result "1/2-1/2"]
[ECO "C78"]
[WhiteElo "2296"]
[BlackElo "2272"]
[Annotator "NA"]
[PlyCount "88"]
[EventDate "2021.03.30"]
[EventType "tourn"]
[EventCountry "GER"]
[SourceTitle "playchess.com"]
[Source "ChessBase"]
[SourceQuality "1"]
[TimeControl "40/5400+30:1800+30"]

1. e4 {[%emt 0:00:00]} e5 {[%emt 0:00:00]} 2. Nf3 {[%emt 0:00:00]} Nc6 {[%emt 0:00:00]} 3. Bb5 {[%emt 0:00:00]} a6 {[%emt 0:00:00]} 4. Ba4 {[%emt 0:00:00]} Nf6 $11 {[%emt 0:00:02]} 5. O-O {[%emt 0:00:06]} b5 {[%emt 0:00:09]} 6. Bb3 {[%emt 0:00:05]} Bc5 {[%emt 0:00:09]} 7. a4 {[%emt 0:00:41]} Rb8 {[%emt 0:00:12]} 8. c3 {[%emt 0:00:07]} d6 {[%emt 0:00:09]} 9. d4 {[%emt 0:00:32]} Bb6 {[%emt 0:00:10]} 10. a5 {[%emt 0:00:27]} Ba7 {[%emt 0:00:10]} 11. h3 {[%emt 0:00:55]} O-O {[%emt 0:00:26]} 12. Be3 {[%emt 0:00:54]} exd4 {[%emt 0:00:18]} 13. cxd4 {[%emt 0:00:54]} Nb4 {[%emt 0:00:28]} 14. Nc3 {[%emt 0:04:19]} Bb7 {[%emt 0:00:50]} 15. Ng5 {[%emt 0:20:57]} Qe8 {[%emt 0:08:33]} 16. e5 {[%emt 0:10:06]} Nfd5 {[%emt 0:23:25]} 17. Nxd5 {[%emt 0:06:16]} Nxd5 {[%emt 0:02:21]} 18. Qc2 {[%emt 0:02:57]} g6 {[%emt 0:01:34]} 19. Bxd5 {[%emt 0:03:38]} Bxd5 {[%emt 0:00:12]} 20. Qxc7 {[%emt 0:00:11]} Qc6 {[%emt 0:05:48]} 21. Qxc6 {[%emt 0:04:49]} Bxc6 {[%emt 0:00:06]} 22. Rac1 {[%emt 0:00:40]} Rbc8 {[%emt 0:01:22]} 23. exd6 {[%emt 0:01:27]} Rfd8 {[%emt 0:04:03]} 24. Rc2 {[%emt 0:04:57]} Bd5 {[%emt 0:06:55]} 25. Rfc1 {[%emt 0:02:51]} Rc4 {[%emt 0:06:24]} 26. Nf3 {[%emt 0:02:40]} Rxd6 {[%emt 0:08:50]} 27. Ne5 {[%emt 0:03:34]} Rxc2 {[%emt 0:00:33]} 28. Rxc2 {[%emt 0:00:05]} Kg7 {[%emt 0:02:35]} 29. Rc7 {[%emt 0:05:26]} Bb8 {[%emt 0:00:16]} 30. Rc8 {[%emt 0:01:21]} Ba7 {[%emt 0:00:10]} 31. Ng4 {[%emt 0:01:25]} g5 {[%emt 0:01:36]} 32. Bxg5 {[%emt 0:02:57]} Bxd4 {[%emt 0:00:12]} 33. Bf4 {[%emt 0:02:56]} Rd7 {[%emt 0:07:32]} 34. Be5+ {[%emt 0:05:23]} Bxe5 {[%emt 0:00:15]} 35. Nxe5 {[%emt 0:00:03]} Re7 {[%emt 0:01:40]} 36. f4 {[%emt 0:07:11]} f6 {[%emt 0:00:39]} 37. Rd8 {[%emt 0:00:04]} Bxg2 {[%emt 0:01:57]} 38. Kxg2 {[%emt 0:02:35]} fxe5 {[%emt 0:00:06]} 39. Rd6 {[%emt 0:03:48]} exf4 {[%emt 0:00:50]} 40. Rxa6 {[%emt 0:00:04]} Re2+ {[%emt 0:02:35]} 41. Kf3 {[%emt 0:30:20]} Rxb2 {[%emt 0:32:15]} 42. Rb6 {[%emt 0:00:07]} b4 {[%emt 0:01:12]} 43. a6 {[%emt 0:00:28]} Ra2 {[%emt 0:00:23]} 44. Rxb4 {[%emt 0:00:06]} Rxa6 {[%emt 0:00:15]} 1/2-1/2

[Event "DSB-Frauenkader-Challenge 2021"]
[Site "Magdeburg"]
[Date "2021.04.09"]
[Round "5.3"]
[White "Ziegenfuss, Antonia"]
[Black "Bashylina, Luisa"]
[Result "1/2-1/2"]
[ECO "D00"]
[WhiteElo "2101"]
[BlackElo "1978"]
[Annotator "NA"]
[PlyCount "51"]
[EventDate "2021.03.30"]
[EventType "tourn"]
[EventCountry "GER"]
[SourceTitle "playchess.com"]
[Source "ChessBase"]
[SourceQuality "1"]
[TimeControl "40/5400+30:1800+30"]

1. d4 {[%emt 0:00:00]} Nf6 {[%emt 0:00:00]} 2. Nc3 {[%emt 0:00:00]} d5 {[%emt 0:00:00]} 3. Bf4 {[%emt 0:00:00]} a6 {[%emt 0:00:00]} 4. e3 {[%emt 0:00:14]} c5 {[%emt 0:04:12]} 5. h3 {[%emt 0:02:12]} Nc6 {[%emt 0:05:41]} 6. Nf3 {[%emt 0:01:07]} e6 {[%emt 0:02:48]} 7. Be2 {[%emt 0:02:50]} b5 {[%emt 0:01:01]} 8. O-O {[%emt 0:08:51]} Be7 {[%emt 0:03:48]} 9. a4 {[%emt 0:13:48]} b4 {[%emt 0:03:51]} 10. Nb1 {[%emt 0:01:39]} O-O {[%emt 0:01:03]} 11. Nbd2 {[%emt 0:06:29]} Bb7 {[%emt 0:09:07]} 12. c3 {[%emt 0:03:43]} Rc8 {[%emt 0:07:18]} 13. Bd3 {[%emt 0:08:00]} bxc3 {[%emt 0:08:58]} 14. bxc3 {[%emt 0:00:08]} cxd4 {[%emt 0:00:19]} 15. cxd4 {[%emt 0:00:52]} Nb4 {[%emt 0:00:36]} 16. Be2 {[%emt 0:02:53]} Ne4 {[%emt 0:07:47]} 17. Nxe4 {[%emt 0:14:28]} dxe4 {[%emt 0:00:05]} 18. Ne1 {[%emt 0:00:46]} Nd5 {[%emt 0:00:37]} 19. Bh2 {[%emt 0:01:11]} Nc3 {[%emt 0:08:38]} 20. Qd2 {[%emt 0:01:27]} Qb6 {[%emt 0:01:41]} 21. f4 {[%emt 0:12:01]} Bd5 {[%emt 0:12:57]} 22. Rf2 {[%emt 0:02:18]} Nb1 {[%emt 0:10:29]} 23. Qd1 {[%emt 0:00:38]} Nc3 {[%emt 0:00:14]} 24. Qd2 {[%emt 0:04:04]} Nb1 {[%emt 0:02:42]} 25. Qd1 {[%emt 0:00:06]} Nc3 {[%emt 0:00:42]} 26. Qd2 {[%emt 0:13:15]} 1/2-1/2